fUSD/lending_fUSD_20260323
["ID","MTS","AMOUNT","RATE_DAILY","PERIOD"]
[408812747,1774288173341,-500.0,0.00011986,2]
[408812748,1774288173362,-500.0,0.00011986,2]
[408812749,1774288173384,-500.0,0.00011986,2]
[408812750,1774288173407,-500.0,0.00011986,2]
[408812751,1774288173432,-500.0,0.00011986,2]
[408812752,1774288173454,-500.0,0.00011986,2]
[408812753,1774288173476,-500.0,0.00011986,2]
[408812754,1774288173498,-436.58173856,0.00011986,2]
[408812755,1774288173521,-500.0,0.00011986,2]
[408812756,1774288173546,-500.0,0.00011986,2]
[408812757,1774288173567,-500.0,0.00011986,2]
[408812758,1774288173590,-500.0,0.00011986,2]
[408812759,1774288173611,-500.0,0.00011986,2]
[408812760,1774288173634,-500.0,0.00011986,2]
[408812761,1774288173656,-500.0,0.00011986,2]
[408812762,1774288173677,-500.0,0.00011986,2]
[408812763,1774288173699,-500.0,0.00011986,2]
[408812764,1774288173726,-500.0,0.00011986,2]
[408812765,1774288173750,-500.0,0.00011986,2]
[408812766,1774288173771,-500.0,0.00011986,2]
[408812767,1774288173792,-500.0,0.00011986,2]
[408812768,1774288173813,-500.0,0.00011986,2]
[408812769,1774288173834,-500.0,0.00011986,2]
[408812770,1774288173854,-500.0,0.00011986,2]
[408812771,1774288173877,-500.0,0.00011986,2]
[408812772,1774288173898,-500.0,0.00011986,2]
[408812773,1774288173920,-500.0,0.00011986,2]
[408812774,1774288173942,-500.0,0.00011986,2]
[408812775,1774288173963,-500.0,0.00011986,2]
[408812776,1774288173985,-500.0,0.00011986,2]
[408812777,1774288174008,-400.0,0.00011986,2]
[408812778,1774288174030,-500.0,0.00011986,2]
[408812779,1774288174054,-500.0,0.00011986,2]
[408812780,1774288174078,-500.0,0.00011986,2]
[408812781,1774288174102,-500.0,0.00011986,2]
[408812782,1774288174127,-500.0,0.00011986,2]
[408812783,1774288174150,-500.0,0.00011986,2]
[408812784,1774288174173,-500.0,0.00011986,2]
[408812785,1774288174196,-500.0,0.00011986,2]
[408812786,1774288174217,-500.0,0.00011986,2]
[408812787,1774288174239,-500.0,0.00011986,2]
[408812788,1774288174262,-500.0,0.00011986,2]
[408812789,1774288174284,-500.0,0.00011986,2]
[408812790,1774288174306,-500.0,0.00011986,2]
[408812791,1774288174327,-175851.32195219,0.00011987,2]
[408812794,1774288229366,-8738.0,0.00011671,2]
[408812795,1774288229388,-442.0613732,0.00011677,2]
[408812796,1774288229411,-1200.0,0.00011686,2]
[408812797,1774288229438,-2500.0,0.00011687,2]
[408812798,1774288229462,-39119.9386268,0.00011687,2]
[408812807,1774288231415,-85487.67363995,0.00011687,2]
[408812808,1774288231469,-969.80549567,0.00011687,2]
[408812824,1774288237431,-915.68180285,0.00011687,2]
[408812825,1774288237486,-1740449.82333473,0.00011687,2]
[408812826,1774288237495,-46049.05984176,0.00011773,2]
[408812827,1774288237505,-2500.0,0.00011787,2]
[408812828,1774288237514,-504.1137546,0.00011873,2]
[408812829,1774288237524,-167.47929119,0.00011873,2]
[408812830,1774288237533,-500.0,0.00011873,2]
[408812831,1774288237543,-500.0,0.00011873,2]
[408812832,1774288237554,-500.0,0.00011873,2]
[408812833,1774288237563,-500.0,0.00011873,2]
[408812834,1774288237575,-500.0,0.00011873,2]
[408812835,1774288237586,-502.08297344,0.00011873,2]
[408812836,1774288237595,-245.22375764,0.00011887,2]
[408812838,1774288237604,-2500.0,0.00011931,2]
[408812839,1774288237613,-506517.29299115,0.00011987,2]
[408812840,1774288237630,-719.17,0.00011987,2]
[408812841,1774288237641,-71011.00000003,0.00011987,2]
[408812851,1774288239579,-461.5282217,0.00011987,2]
[408812852,1774288239635,-293.21484293,0.00011987,2]
[408812853,1774288239955,-920997.79394419,0.00011987,2]
[408812854,1774288239964,-22214.1809,0.00011987,2]
[408812855,1774288239974,-792.4404,0.00011987,2]
[408812856,1774288239984,-1465.06,0.00012147,2]
[408812857,1774288239994,-500.0,0.00012421,2]
[408812858,1774288240003,-1000.0,0.00012421,2]
[408812859,1774288240013,-500.5356408,0.00012421,2]
[408812860,1774288240023,-1000.0,0.00012421,2]
[408812861,1774288240033,-1000.0,0.00012421,2]
[408812862,1774288240042,-1000.0,0.00012421,2]
[408812863,1774288240051,-1003.14998269,0.00012421,2]
[408812864,1774288240061,-1000.6537405,0.00012421,2]
[408812865,1774288240071,-1000.0,0.00012421,2]
[408812866,1774288240082,-1000.0,0.00012421,2]
[408812867,1774288240092,-1465.06,0.00012421,2]
[408812868,1774288240103,-150.0,0.000125,2]
[408812869,1774288240113,-502.82851011,0.00012521,2]
[408812870,1774288240122,-200.0,0.00012528,2]
[408812871,1774288240131,-1465.06,0.00012695,2]
[408812872,1774288240141,-193.0,0.0001272,2]
[408812873,1774288240151,-5007.4877934,0.0001272,2]
[408812874,1774288240160,-2500.0,0.0001272,2]
[408812875,1774288240171,-250.0,0.0001272,2]
[408812876,1774288240181,-98906.8184423,0.00012789,2]
[408812877,1774288240190,-250.0,0.00012855,2]
[408812878,1774288240199,-2500.0,0.00012855,2]
[408812879,1774288240209,-1680.0,0.00012855,2]
[408812880,1774288240218,-255.0,0.00012881,2]
[408812881,1774288240227,-12688.82858581,0.00012902,2]
[408812882,1774288240236,-250.0,0.00012964,2]
[408812884,1774288240245,-2500.0,0.00012964,2]
[408812886,1774288240255,-1465.06,0.00012968,2]
[408812888,1774288240264,-1500.0,0.00012968,2]
[408812889,1774288240272,-1500.0,0.00012968,2]
[408812890,1774288240282,-1500.0,0.00012968,2]
[408812891,1774288240867,-1000.0,0.00012968,2]
[408812892,1774288240878,-250.0,0.00013,2]
[408812893,1774288240887,-200.0,0.00013076,2]
[408812894,1774288240896,-1465.06,0.00013242,2]
[408812895,1774288240905,-346.41,0.00013486,2]
[408812896,1774288240915,-1465.06,0.00013516,2]
[408812897,1774288240925,-1506.28638887,0.00013516,2]
[408812898,1774288240935,-1500.0,0.00013516,2]
[408812899,1774288240944,-200.0,0.00013624,2]
[408812900,1774288240953,-442.0613732,0.00013688,2]
[408812901,1774288240962,-500.0,0.00013698,2]
[408812902,1774288240971,-500.0,0.00013698,2]
[408812903,1774288240980,-500.0,0.00013698,2]
[408812904,1774288240989,-500.0,0.00013698,2]
[408812905,1774288240998,-500.0,0.00013698,2]
[408812906,1774288241008,-500.0,0.00013698,2]
[408812907,1774288241017,-500.0,0.00013698,2]
[408812908,1774288241026,-500.0,0.00013698,2]
[408812909,1774288241035,-500.0,0.00013698,2]
[408812910,1774288241045,-523.04,0.00013698,2]
[408812911,1774288241054,-523.04,0.00013698,2]
[408812912,1774288241063,-500.0,0.00013698,2]
[408812913,1774288241072,-500.0,0.00013698,2]
[408812914,1774288241081,-536.59,0.00013698,2]
[408812915,1774288241090,-536.59,0.00013698,2]
[408812916,1774288241099,-500.0,0.00013698,2]
[408812917,1774288241107,-500.0,0.00013698,2]
[408812918,1774288241117,-289.39363611,0.00013698,2]
[408812919,1774288241127,-500.0,0.00013698,2]
[408812920,1774288241135,-500.0,0.00013698,2]
[408812921,1774288241144,-500.0,0.00013698,2]
[408812922,1774288241154,-500.0,0.00013698,2]
[408812923,1774288241163,-500.0,0.00013698,2]
[408812924,1774288241172,-500.0,0.00013698,2]
[408812925,1774288241182,-500.0,0.00013698,2]
[408812926,1774288241192,-500.0,0.00013698,2]
[408812927,1774288241202,-500.0,0.00013698,2]
[408812928,1774288241211,-322.69371254,0.00013698,2]
[408812929,1774288241220,-500.0,0.00013698,2]
[408812930,1774288241229,-500.0,0.00013698,2]
[408812931,1774288241238,-500.0,0.00013698,2]
[408812932,1774288241248,-500.0,0.00013698,2]
[408812933,1774288241258,-500.0,0.00013698,2]
[408812934,1774288241267,-500.0,0.00013698,2]
[408812935,1774288241276,-500.0,0.00013698,2]
[408812936,1774288241285,-500.0,0.00013698,2]
[408812937,1774288241295,-500.0,0.00013698,2]
[408812938,1774288241304,-500.0,0.00013698,2]
[408812939,1774288241313,-500.0,0.00013698,2]
[408812940,1774288241323,-500.0,0.00013698,2]
[408812941,1774288241332,-500.0,0.00013698,2]
[408812942,1774288241341,-500.0,0.00013698,2]
[408812943,1774288241351,-500.0,0.00013698,2]
[408812944,1774288241360,-500.0,0.00013698,2]
[408812945,1774288241369,-515.03002823,0.00013698,2]
[408812946,1774288241379,-4052.08,0.00013698,2]
[408812947,1774288241388,-4052.08,0.00013698,2]
[408812948,1774288241397,-4052.08,0.00013698,2]
[408812949,1774288241407,-4052.08,0.00013698,2]
[408812950,1774288241416,-4052.08,0.00013698,2]
[408812951,1774288241425,-4052.08,0.00013698,2]
[408812952,1774288241435,-4052.08,0.00013698,2]
[408812953,1774288241444,-4052.08,0.00013698,2]
[408812954,1774288241454,-4052.08,0.00013698,2]
[408812955,1774288241463,-4052.08,0.00013698,2]
[408812956,1774288241473,-500.0,0.00013698,2]
[408812957,1774288241482,-500.0,0.00013698,2]
[408812958,1774288241491,-500.0,0.00013698,2]
[408812959,1774288241501,-500.0,0.00013698,2]
[408812960,1774288241510,-500.0,0.00013698,2]
[408812961,1774288241519,-500.0,0.00013698,2]
[408812962,1774288241528,-500.0,0.00013698,2]
[408812963,1774288241538,-255.58041295,0.00013698,2]
[408812964,1774288241547,-500.0,0.00013698,2]
[408812965,1774288241560,-500.0,0.00013698,2]
[408812966,1774288241569,-622.71396228,0.00013698,2]
[408812967,1774288241578,-500.0,0.00013698,2]
[408812968,1774288241588,-500.0,0.00013698,2]
[408812969,1774288241598,-500.0,0.00013698,2]
[408812970,1774288241608,-355.55659377,0.00013698,2]
[408812971,1774288241617,-500.0,0.00013698,2]
[408812972,1774288241627,-500.0,0.00013698,2]
[408812973,1774288241636,-500.0,0.00013698,2]
[408812974,1774288241645,-862.94,0.00013698,2]
[408812975,1774288241655,-500.0,0.00013698,2]
[408812976,1774288241665,-862.94,0.00013698,2]
[408812977,1774288241674,-500.0,0.00013698,2]
[408812978,1774288241683,-862.94,0.00013698,2]
[408812979,1774288241692,-500.0,0.00013698,2]
[408812980,1774288241701,-500.0,0.00013698,2]
[408812981,1774288241711,-500.0,0.00013698,2]
[408812982,1774288241720,-500.0,0.00013698,2]
[408812983,1774288241729,-500.0,0.00013698,2]
[408812984,1774288241739,-500.0,0.00013698,2]
[408812985,1774288241748,-500.0,0.00013698,2]
[408812986,1774288241757,-500.0,0.00013698,2]
[408812987,1774288241767,-500.0,0.00013698,2]
[408812988,1774288241776,-500.0,0.00013698,2]
[408812989,1774288241785,-500.0,0.00013698,2]
[408812990,1774288241794,-500.0,0.00013698,2]
[408812991,1774288241804,-500.0,0.00013698,2]
[408812992,1774288241813,-158.61477964,0.00013698,2]
[408812993,1774288241822,-1103.88,0.00013698,2]
[408812994,1774288241831,-1103.88,0.00013698,2]
[408812995,1774288241841,-1103.88,0.00013698,2]
[408812996,1774288241850,-1103.88,0.00013698,2]
[408812997,1774288241859,-1103.88,0.00013698,2]
[408812998,1774288241868,-1103.88,0.00013698,2]
[408812999,1774288241877,-1103.88,0.00013698,2]
[408813000,1774288241885,-1103.88,0.00013698,2]
[408813001,1774288241895,-1103.88,0.00013698,2]
[408813002,1774288241904,-1103.88,0.00013698,2]
[408813003,1774288241913,-508.84337404,0.00013698,2]
[408813004,1774288241923,-500.0,0.00013698,2]
[408813005,1774288241932,-500.0,0.00013698,2]
[408813006,1774288241941,-500.0,0.00013698,2]
[408813007,1774288241951,-500.0,0.00013698,2]
[408813008,1774288241960,-500.0,0.00013698,2]
[408813009,1774288241969,-500.0,0.00013698,2]
[408813010,1774288241978,-234.62655045,0.00013698,2]
[408813011,1774288241988,-500.0,0.00013698,2]
[408813012,1774288241996,-500.0,0.00013698,2]
[408813013,1774288242006,-500.0,0.00013698,2]
[408813014,1774288242015,-500.0,0.00013698,2]
[408813015,1774288242024,-500.0,0.00013698,2]
[408813016,1774288242033,-500.0,0.00013698,2]
[408813017,1774288242043,-500.0,0.00013698,2]
[408813018,1774288242054,-500.0,0.00013698,2]
[408813019,1774288242064,-500.0,0.00013698,2]
[408813020,1774288242073,-500.0,0.00013698,2]
[408813021,1774288242083,-500.0,0.00013698,2]
[408813022,1774288242092,-500.0,0.00013698,2]
[408813023,1774288242101,-500.0,0.00013698,2]
[408813024,1774288242110,-500.0,0.00013698,2]
[408813025,1774288242119,-500.0,0.00013698,2]
[408813026,1774288242129,-500.0,0.00013698,2]
[408813027,1774288242138,-500.0,0.00013698,2]
[408813028,1774288242148,-500.0,0.00013698,2]
[408813029,1774288242158,-500.0,0.00013698,2]
[408813030,1774288242168,-500.0,0.00013698,2]
[408813031,1774288242177,-500.0,0.00013698,2]
[408813032,1774288242187,-500.0,0.00013698,2]
[408813033,1774288242197,-500.0,0.00013698,2]
[408813034,1774288242206,-325.89253221,0.00013698,2]
[408813035,1774288242216,-500.0,0.00013698,2]
[408813036,1774288242226,-500.0,0.00013698,2]
[408813037,1774288242235,-500.0,0.00013698,2]
[408813038,1774288242245,-500.0,0.00013698,2]
[408813039,1774288242254,-500.0,0.00013698,2]
[408813040,1774288242264,-500.0,0.00013698,2]
[408813041,1774288242273,-500.0,0.00013698,2]
[408813042,1774288242283,-500.0,0.00013698,2]
[408813043,1774288242292,-500.0,0.00013698,2]
[408813044,1774288242301,-500.0,0.00013698,2]
[408813046,1774288242310,-500.0,0.00013698,2]
[408813047,1774288242319,-500.0,0.00013698,2]
[408813049,1774288242330,-150.0,0.00013699,2]
[408813052,1774288242340,-3065.61,0.00013699,2]
[408813053,1774288242349,-200.0,0.00013699,2]
[408813055,1774288242359,-500.0,0.00013699,2]
[408813059,1774288242369,-501.18414339,0.00013699,2]
[408813060,1774288242378,-500.0,0.00013699,2]
[408813063,1774288242388,-500.0,0.00013699,2]
[408813065,1774288242398,-500.0,0.00013699,2]
[408813066,1774288242407,-500.0,0.00013699,2]
[408813067,1774288242417,-339.22153431,0.00013699,2]
[408813069,1774288242426,-500.0,0.00013699,2]
[408813070,1774288242436,-500.0,0.00013699,2]
[408813071,1774288242446,-500.0,0.00013699,2]
[408813073,1774288242456,-500.0,0.00013699,2]
[408813075,1774288242466,-500.0,0.00013699,2]
[408813077,1774288242476,-500.0,0.00013699,2]
[408813079,1774288242486,-500.0,0.00013699,2]
[408813081,1774288242496,-500.0,0.00013699,2]
[408813083,1774288242505,-160.07471565,0.00013699,2]
[408813085,1774288242516,-598.74889834,0.00013699,2]
[408813087,1774288242526,-500.0,0.00013699,2]
[408813088,1774288242536,-500.0,0.00013699,2]
[408813091,1774288242551,-500.0,0.00013699,2]
[408813092,1774288242564,-500.0,0.00013699,2]
[408813094,1774288242573,-568.73940458,0.00013699,2]
[408813095,1774288242581,-500.0,0.00013699,2]
[408813096,1774288242590,-500.0,0.00013699,2]
[408813097,1774288242601,-240.45947328,0.00013699,2]
[408813098,1774288242610,-500.0,0.00013699,2]
[408813099,1774288242620,-500.0,0.00013699,2]
[408813100,1774288242628,-500.85011451,0.00013699,2]
[408813101,1774288242638,-500.80656988,0.00013699,2]
[408813102,1774288242647,-500.0,0.00013699,2]
[408813103,1774288242656,-500.0,0.00013699,2]
[408813104,1774288242666,-160.21932423,0.00013699,2]
[408813105,1774288242676,-501.53205621,0.00013699,2]
[408813106,1774288242685,-500.0,0.00013699,2]
[408813107,1774288242694,-210.78762468,0.00013699,2]
[408813108,1774288242703,-200.0,0.00013699,2]
[408813109,1774288242714,-500.0,0.00013699,2]
[408813110,1774288242723,-500.0,0.00013699,2]
[408813111,1774288242733,-178.98128044,0.00013699,2]
[408813112,1774288242742,-157.49,0.000137,2]
[408813113,1774288242751,-413.01,0.000137,2]
[408813114,1774288242761,-492.19,0.000137,2]
[408813115,1774288242770,-473.86,0.000137,2]
[408813116,1774288242780,-1465.06,0.0001379,2]
[408813117,1774288242789,-242.26,0.00013819,2]
[408813118,1774288242798,-500.0,0.00013972,2]
[408813119,1774288242808,-150.0,0.00013973,2]
[408813120,1774288242818,-502.0,0.00014,2]
[408813121,1774288242827,-501.0,0.00014,2]
[408813122,1774288242836,-12688.82858581,0.00014016,2]
[408813123,1774288242846,-283.0,0.0001405,2]
[408813124,1774288242856,-1465.06,0.00014064,2]
[408813125,1774288242865,-2351.0,0.0001414,2]
[408813126,1774288242874,-200.0,0.00014172,2]
[408813127,1774288242883,-500.0,0.00014246,2]
[408813128,1774288242892,-1000.56216713,0.00014247,2]
[408813129,1774288242901,-625.7094666,0.00014247,2]
[408813130,1774288242911,-1000.0,0.00014247,2]
[408813131,1774288242920,-1000.0,0.00014247,2]
[408813132,1774288242930,-1000.0,0.00014247,2]
[408813133,1774288242939,-1000.77685868,0.00014247,2]
[408813134,1774288242949,-1000.0,0.00014247,2]
[408813135,1774288242959,-1000.0,0.00014247,2]
[408813136,1774288242968,-1465.06,0.00014338,2]
[408813137,1774288242977,-3065.61,0.00014384,2]
[408813138,1774288242987,-198.0,0.000144,2]
[408813139,1774288242996,-491.52,0.00014477,2]
[408813140,1774288243005,-500.0,0.0001452,2]
[408813141,1774288243015,-1465.06,0.00014612,2]
[408813142,1774288243024,-1568.0,0.0001472,2]
[408813143,1774288243033,-1601.0,0.0001472,2]
[408813144,1774288243042,-491.52,0.00014751,2]
[408813145,1774288243052,-1103.88,0.0001476,2]
[408813146,1774288243061,-500.0,0.0001476,2]
[408813147,1774288243070,-500.0,0.0001476,2]
[408813148,1774288243079,-500.0,0.00014794,2]
[408813149,1774288243088,-9552.16786547,0.00014812,2]
[408813150,1774288243098,-500.0,0.00014812,2]
[408813151,1774288243107,-500.0,0.00014812,2]
[408813152,1774288243116,-500.0,0.00014812,2]
[408813153,1774288243126,-500.0,0.00014812,2]
[408813154,1774288243135,-500.0,0.00014812,2]
[408813155,1774288243145,-496.87201155,0.00014812,2]
[408813156,1774288243154,-556.64496763,0.00014812,2]
[408813157,1774288243164,-500.0,0.00014812,2]
[408813158,1774288243174,-500.0,0.00014812,2]
[408813159,1774288243183,-500.0,0.00014812,2]
[408813160,1774288243193,-500.0,0.00014812,2]
[408813161,1774288243204,-500.0,0.00014812,2]
[408813162,1774288243213,-500.0,0.00014812,2]
[408813163,1774288243222,-500.0,0.00014812,2]
[408813164,1774288243231,-500.0,0.00014812,2]
[408813165,1774288243241,-500.0,0.00014812,2]
[408813166,1774288243251,-500.0,0.00014812,2]
[408813167,1774288243260,-500.0,0.00014812,2]
[408813168,1774288243269,-171.64692845,0.00014812,2]
[408813169,1774288243279,-250.0,0.00014812,2]
[408813170,1774288243288,-250.0,0.00014812,2]
[408813171,1774288243297,-250.0,0.00014812,2]
[408813172,1774288243306,-282.59450799,0.00014812,2]
[408813173,1774288243316,-151.0,0.00014812,2]
[408813174,1774288243325,-538.9,0.00014855,2]
[408813175,1774288243334,-9905.5980765,0.00014867,2]
[408813176,1774288243343,-500.0,0.00014867,2]
[408813177,1774288243353,-151.0,0.00014867,2]
[408813178,1774288243362,-1465.15,0.00014886,2]
[408813179,1774288243371,-171.37316431,0.000149,2]
[408813180,1774288243380,-171.37316431,0.000149,2]
[408813181,1774288243389,-10272.10520533,0.00014922,2]
[408813182,1774288243399,-500.0,0.00014922,2]
[408813183,1774288243408,-151.0,0.00014922,2]
[408813184,1774288243417,-500.0,0.00014977,2]
[408813185,1774288243426,-10652.17309792,0.00014977,2]
[408813186,1774288243435,-151.0,0.00014977,2]
[408813187,1774288243444,-300.0,0.00015,2]
[408813188,1774288243454,-491.52,0.00015025,2]
[408813189,1774288243463,-500.0,0.00015032,2]
[408813190,1774288243472,-11046.30350255,0.00015032,2]
[408813191,1774288243481,-151.0,0.00015032,2]
[408813192,1774288243490,-1568.0,0.0001504,2]
[408813193,1774288243499,-161.0,0.0001504,2]
[408813194,1774288243509,-2500.0,0.00015068,2]
[408813195,1774288243518,-2500.0,0.00015068,2]
[408813196,1774288243528,-2500.0,0.00015068,2]
[408813197,1774288243538,-2500.0,0.00015068,2]
[408813198,1774288243549,-2500.0,0.00015068,2]
[408813199,1774288243561,-2500.0,0.00015068,2]
[408813200,1774288243571,-2500.0,0.00015068,2]
[408813201,1774288243580,-2500.0,0.00015068,2]
[408813202,1774288243590,-2500.0,0.00015068,2]
[408813203,1774288243601,-2500.0,0.00015068,2]
[408813204,1774288243610,-263.16,0.00015068,2]
[408813205,1774288243619,-3065.61,0.00015068,2]
[408813206,1774288243631,-11455.01673214,0.00015087,2]
[408813207,1774288243641,-500.0,0.00015087,2]
[408813208,1774288243651,-151.0,0.00015087,2]
[408813209,1774288243660,-1362.8323387,0.00015097,2]
[408813210,1774288243669,-160.0,0.00015103,2]
[408813211,1774288243679,-979.16666667,0.00015103,2]
[408813212,1774288243688,-160.0,0.00015103,2]
[408813213,1774288243698,-160.0,0.0001511,2]
[408813214,1774288243707,-538.9,0.00015129,2]
[408813215,1774288243716,-12688.82858581,0.00015131,2]
[408813216,1774288243726,-11878.85235123,0.00015142,2]
[408813217,1774288243735,-500.0,0.00015142,2]
[408813218,1774288243744,-151.0,0.00015142,2]
[408813219,1774288243753,-617.9910995,0.00015179,2]
[408813220,1774288243764,-36333.027585,0.00015179,2]
[408813221,1774288243773,-500.0,0.00015196,2]
[408813222,1774288243782,-12318.36988823,0.00015197,2]
[408813223,1774288243791,-500.0,0.00015197,2]
[408813224,1774288243800,-151.0,0.00015197,2]
[408813225,1774288243810,-12774.14957409,0.00015252,2]
[408813226,1774288243819,-500.0,0.00015252,2]
[408813227,1774288243829,-491.52,0.00015299,2]
[408813228,1774288243838,-500.0,0.00015307,2]
[408813229,1774288243847,-13246.79310833,0.00015307,2]
[408813230,1774288243856,-13736.92445334,0.00015362,2]
[408813231,1774288243865,-538.9,0.00015403,2]
[408813232,1774288243874,-150.94,0.00015406,2]
[408813233,1774288243883,-228.361155,0.00015546,7]
[408813234,1774288243892,-237.956162,0.00015546,7]
[408813235,1774288243902,-184.217163,0.00015546,7]
[408813236,1774288243911,-184.863792,0.00015546,7]
[408813237,1774288243920,-2351.0,0.00015554,2]
[408813238,1774288243929,-324.41,0.00015573,2]
[408813239,1774288243938,-400.0,0.00015616,2]
[408813240,1774288243950,-437.33687381,0.00015616,2]
[408813241,1774288243959,-538.9,0.00015677,2]
[408813242,1774288243968,-2804.0,0.0001568,2]
[408813243,1774288243978,-213.191254,0.0001568,7]
[408813244,1774288243989,-284.261749,0.0001568,7]
[408813245,1774288243998,-202.0,0.00015753,2]
[408813246,1774288244007,-281.0,0.00015753,2]
[408813247,1774288244016,-224.0,0.00015753,2]
[408813248,1774288244026,-3065.61,0.00015753,2]
[408813249,1774288244035,-473.86,0.000158,2]
[408813250,1774288244044,-302.0,0.00015847,2]
[408813251,1774288244053,-4052.08,0.00015862,2]
[408813252,1774288244062,-4052.08,0.00015862,2]
[408813253,1774288244072,-4052.08,0.00015862,2]
[408813254,1774288244081,-4052.08,0.00015862,2]
[408813256,1774288244090,-500.0,0.00015862,2]
[408813257,1774288244100,-500.0,0.00015862,2]
[408813258,1774288244109,-250.0,0.00015862,2]
[408813259,1774288244119,-1103.88,0.00015862,2]
[408813260,1774288244130,-1103.88,0.00015862,2]
[408813261,1774288244140,-1103.88,0.00015862,2]
[408813263,1774288244149,-1103.88,0.00015862,2]
[408813265,1774288244158,-507.82734727,0.00015862,2]
[408813267,1774288244168,-500.0,0.00015862,2]
[408813269,1774288244178,-500.0,0.00015862,2]
[408813271,1774288244187,-500.0,0.00015862,2]
[408813273,1774288244198,-500.0,0.00015862,2]
[408813275,1774288244208,-2500.0,0.00015862,2]
[408813277,1774288244218,-2500.0,0.00015862,2]
[408813279,1774288244228,-2500.0,0.00015862,2]
[408813281,1774288244237,-2500.0,0.00015862,2]
[408813283,1774288244247,-1440.7371948,0.00015863,2]
[408813285,1774288244256,-125302.3612589,0.00015863,2]
[408813287,1774288244265,-1913.8065298,0.00015863,2]
[408813289,1774288244275,-764680.0623213,0.00015863,2]
[408813292,1774288244284,-176.00481858,0.00015872,2]
[408813294,1774288244293,-538.91,0.00015951,2]
[408813297,1774288244304,-1964.14590497,0.00015956,2]
[408813299,1774288244313,-400.0,0.0001597,2]
[408813301,1774288244322,-700.0,0.0001597,2]
[408813303,1774288244332,-449.06978302,0.0001597,2]
[408813305,1774288244341,-700.0,0.0001597,2]
[408813307,1774288244350,-700.0,0.0001597,2]
[408813308,1774288244360,-700.0,0.0001597,2]
[408813310,1774288244369,-1174.29303336,0.0001597,2]
[408813312,1774288244378,-500.0,0.00015973,2]
[408813313,1774288244387,-500.0,0.00015973,2]
[408813314,1774288244397,-500.48560539,0.00015973,2]
[408813315,1774288244406,-500.0,0.00015999,2]
[408813316,1774288244415,-500.0,0.00015999,2]
[408813317,1774288244425,-500.0,0.00015999,2]
[408813318,1774288244435,-500.0,0.00015999,2]
[408813319,1774288244445,-500.0,0.00015999,2]
[408813320,1774288244455,-500.0,0.00015999,2]
[408813321,1774288244464,-500.0,0.00015999,2]
[408813322,1774288244473,-500.0,0.00015999,2]
[408813323,1774288244483,-500.0,0.00015999,2]
[408813324,1774288244493,-551.35339154,0.00015999,2]
[408813325,1774288244503,-500.0,0.00015999,2]
[408813326,1774288244514,-500.0,0.00015999,2]
[408813327,1774288244523,-500.0,0.00015999,2]
[408813328,1774288244533,-500.0,0.00015999,2]
[408813329,1774288244542,-500.0,0.00015999,2]
[408813330,1774288244553,-500.0,0.00015999,2]
[408813331,1774288244563,-500.0,0.00015999,2]
[408813332,1774288244572,-500.0,0.00015999,2]
[408813333,1774288244582,-500.0,0.00015999,2]
[408813334,1774288244591,-500.0,0.00015999,2]